Cogmind - Beta 11.1 @@@ ROGUE MODE // 2022.07.06 @ 03:42:19 Player: Mombamambo Result: Self-destructed Performance ------------- Evolutions (2) 1000 Regions Visited (4) 800 Robots Destroyed (79) 395 Value Destroyed (1346) 1346 Prototype IDs (4) 80 Alien Tech Used (0) 0 Bonus (54) 54 TOTAL SCORE: 3675 Bonus ------- High Alert Combat Kills 54 Cogmind --------- Core Integrity 263/550 Matter 300/300 Energy 40/100 System Corruption 0% Temperature Cool (0) Movement Core (50) Location -8/Materials Parts ------- > --- POWER (1) -------- (None) > --- PROPULSION (4) --- (None) > --- UTILITY (2) ------ Advanced Weight Redist. System Advanced Weight Redist. System > --- WEAPON (4) ------- (None) > --- INVENTORY (5) ---- Compact Wheel Improved Heat Sink Compact Matter Pod (150) Authchip [Propulsion] Missile Launcher Peak State ------------ > --- POWER ------------ Reinforced Ion Engine > --- PROPULSION ------- Improved Flight Unit Cesium-ion Thruster Cesium-ion Thruster > --- UTILITY ---------- Advanced Weight Redist. System Advanced Weight Redist. System > --- WEAPON ----------- Particle Gun Heavy Hammer Heavy Hammer Heavy Hammer > --- INVENTORY -------- Improved Heat Sink Compact Matter Pod Authchip [Propulsion] Missile Launcher [Rating: 26] Favorites ----------- Power Improved Ion Engine Engine Improved Ion Engine Propulsion Wheel Treads Light Treads Leg Aluminum Leg Wheel Wheel Hover Unit Hover Unit Flight Unit Cesium-ion Thruster Utility Medium Storage Unit Device Advanced Weight Redist. System Storage Medium Storage Unit Processor Signal Interpreter Protection Weapon Shielding Weapon Heavy Hammer Energy Gun Small Laser Ballistic Gun Light Assault Rifle Impact Weapon Heavy Hammer Special Melee Weapon Datajack Build | -11 -10 -10 -9 -8 ------- Run | Scr Mat Min Mat Mat Slots Evolved 4 | . . . 2 2 Power . | . . . . . Propulsion 2 | . . . 1 1 Utility . | . . . . . Weapon 2 | . . . 1 1 Parts Attached 63 | 6 10 23 15 9 Power 6 | 1 1 2 1 1 Engine 6 | 1 1 2 1 1 Core . | . . . . . Reactor . | . . . . . Propulsion 30 | 2 2 15 7 4 Treads 3 | . . 3 . . Leg 4 | . . 3 1 . Wheel 12 | 2 2 4 3 1 Hover 5 | . . 3 2 . Flight 6 | . . 2 1 3 Utility 8 | 1 2 . 3 2 Device 2 | . . . . 2 Storage 2 | 1 1 . . . Processor 2 | . 1 . 1 . Hackware . | . . . . . Protection 2 | . . . 2 . Artifact . | . . . . . Weapon 19 | 2 5 6 4 2 Energy Gun 9 | 1 2 4 1 1 Energy Cannon . | . . . . . Ballistic Gun 5 | 1 2 2 . . Ballistic Cannon . | . . . . . Launcher . | . . . . . Special Weapon . | . . . . . Impact Weapon 4 | . . . 3 1 Slashing Weapon . | . . . . . Piercing Weapon . | . . . . . Special Melee Weapon 1 | . 1 . . . Unidentified Prototypes 1 | . . . . 1 Parts Lost 22 | . 2 5 6 9 Power 3 | . . 1 1 1 Propulsion 10 | . . 2 4 4 Utility 1 | . . . 1 . Weapon 8 | . 2 2 . 4 Highest Loss Streak 4 | . 2 2 3 4 To Critical Strikes . | . . . . . Average Slot Usage (%) 93 | . 90 97 95 79 Engine 12 | . 14 13 10 8 Treads 3 | . . 8 . . Leg 9 | . . 8 20 . Wheel 12 | . 28 9 6 10 Flight 2 | . . . . 14 Storage 12 | . 14 14 11 6 Processor 7 | . 5 14 4 . Protection 2 | . . . 6 4 Energy Gun 8 | . 14 13 1 1 Ballistic Gun 7 | . 8 14 . . Impact Weapon 12 | . . . 30 25 Special Melee Weapon 1 | . 4 . . . Naked Turns . | . . . . . Heaviest Build 31 | 11 17 20 28 31 Greatest Support 42 | 20 20 40 30 42 Greatest Overweight (x) 5 | . . 4 4 5 Average Overweight (x) . | . . . . . Largest Inventory Capacity 10 | 8 10 10 10 10 Average Capacity 9 | 6 9 10 10 8 Most Carried 10 | . 10 10 10 10 Average Carried 8 | . 7 9 8 7 Final Capacity 10 | 8 10 10 10 5 Final Carried 10 | . 10 10 8 5 Class Distribution -------------------- 59% | Mutant 36% | Scavenger-Mutant Dominant Class ---------------- Mutant | -10/Materials Scavenger-Mutant | -10/Mines Mutant | -9/Materials Mutant | -8/Materials Resources | -11 -10 -10 -9 -8 ----------- Run | Scr Mat Min Mat Mat Matter Collected 895 | 195 213 272 140 75 Remotely . | . . . . . Salvage Created 2287 | . 553 381 917 436 Parts 113 | . 43 26 32 12 Haulers Intercepted 4 | . 2 . 2 . Recyclers Shooed 1 | . . . 1 . Parts Field Recycled . | . . . . . Retrieved Matter . | . . . . . Parts Self-Destructed . | . . . . . Prevented . | . . . . . Kills | -11 -10 -10 -9 -8 ------- Run | Scr Mat Min Mat Mat Combat Hostiles Destroyed 53 | . 15 10 20 8 Melee 16 | . . . 13 3 Guns 23 | . 13 10 . . AOE 2 | . 2 . . . Classes Destroyed 13 | . 5 4 2 2 Worker 9 | . . 2 7 . Builder 3 | . . . 3 . Tunneler 1 | . . 1 . . Hauler 4 | . 2 . 2 . Recycler 6 | . . 1 4 1 Operator 1 | . 1 . . . Watcher 3 | . 2 . 1 . Swarmer 29 | . 9 5 15 . Grunt 15 | . 6 4 3 2 Brawler 1 | . . . . 1 Sentry 6 | . . . 2 4 Hunter 1 | . . . . 1 Assembled 1 | . . 1 . . Best Kill Streak 8 | . 5 3 8 3 Combat Bots Only 5 | . 5 3 5 3 Max Kills in Single Turn 2 | . 2 1 1 1 Gunslinging 1 | . 1 . . . Exploded 2 | . 2 . . . Melee 1 | . . . 1 1 Uniques/NPCs Destroyed . | . . . . . Combat | -11 -10 -10 -9 -8 -------- Run | Scr Mat Min Mat Mat Damage Taken 2938 | . 257 710 1065 906 Core 815 | . 77 99 352 287 Absorbed by Shields . | . . . . . Redirected to Shielding 85 | . . . 83 2 Core Remaining (%) 47 | 100 . 29 12 . Volleys Fired 128 | . 68 59 . 1 Largest 2 | . 2 2 . 1 Hottest 80 | . 80 60 . 65 Shots Fired 196 | . 95 100 . 1 Gun 196 | . 95 100 . 1 Cannon . | . . . . . Launcher . | . . . . . Special . | . . . . . Kinetic 112 | . 53 59 . . Thermal 40 | . 1 38 . 1 Explosive . | . . . . . Electromagnetic 44 | . 41 3 . . Robot Hit Streak 11 | . 7 11 . 5 Robot Miss Streak 5 | . 5 5 . . Penetration Max . | . . . . . Secondary Targets 4 | . 2 2 . . Max Gunslinging Chain 1 | . 1 1 . . Shots Hit Robots 223 | . 64 57 69 33 Core Hits 67 | . 28 24 11 4 Critical Kills 4 | . . . 4 . Critical Parts Destroyed 12 | . . . 7 5 Critical Strikes 18 | . . . 13 5 Smash 18 | . . . 13 5 Melee Attacks 144 | . 7 . 95 42 Impact 137 | . . . 95 42 Slashing . | . . . . . Piercing . | . . . . . Sneak Attacks 26 | . 6 . 18 2 Combat Hostiles 1 | . . . . 1 Follow-up Attacks 27 | . . . 18 9 Damage Inflicted 5939 | . 691 579 3536 1133 Guns 1171 | . 576 579 . 16 Cannons . | . . . . . Explosions 225 | . 115 . 110 . Melee 4543 | . . . 3426 1117 Ramming . | . . . . . Kinetic 582 | . 309 273 . . Thermal 407 | . 115 276 . 16 Explosive 110 | . . . 110 . Electromagnetic 297 | . 267 30 . . Impact 4543 | . . . 3426 1117 Slashing . | . . . . . Piercing . | . . . . . Highest Corruption . | . . . . . Average Corruption . | . . . . . Corruption Purged . | . . . . . Corruption Blocked . | . . . . . Overload Shots . | . . . . . Overflow Damage 1270 | . 20 . 1027 223 Projectiles . | . . . . . Explosions 20 | . 20 . . . Melee 1250 | . . . 1027 223 Knockbacks 13 | . . . 8 5 Impact 12 | . . . 8 4 Kinetic . | . . . . . Secondary 1 | . . . . 1 Self-Inflicted Damage 100 | . . . 100 . Shots 1 | . . . 1 . Rammed . | . . . . . Targets Rammed . | . . . . . Kicked . | . . . . . Crushed . | . . . . . Highest Temperature 182 | . 90 182 5 32 Average Temperature 44 | . 32 53 5 17 Received Heat Transfer 720 | . 66 387 123 144 Siege Activations . | . . . . . Robots Corrupted . | . . . . . Combat Hostiles . | . . . . . Parts Fried 37 | . 1 . 29 7 Impact Corruptions 56 | . . . 47 9 Robots Melted . | . . . . . Combat Hostiles . | . . . . . Parts Melted . | . . . . . Heat Transferred 812 | . 150 625 . 37 Parts Sabotaged . | . . . . . Parts Stolen . | . . . . . Parts Stripped . | . . . . . Power Chain Reactions 2 | . 2 . . . Missiles Intercepted . | . . . . . Alert | -11 -10 -10 -9 -8 ------- Run | Scr Mat Min Mat Mat Peak Influence 596 | . 319 275 596 541 Initial 187 | . . 110 . 187 Average 170 | . 197 111 156 334 Maximum Alert Level 2 | . 1 1 2 2 Low Security (%) 60 | 100 39 79 70 20 Level 1 28 | . 60 20 11 38 Level 2 10 | . . . 18 40 Level 3 . | . . . . . Level 4 . | . . . . . Level 5 . | . . . . . High Security . | . . . . . Max Security . | . . . . . Squads Dispatched 10 | . 4 . 3 3 Investigation 3 | . 2 . 1 . Extermination . | . . . . . Reinforcement 6 | . 2 . 1 3 Assault 1 | . . . 1 . Garrison . | . . . . . Intercept . | . . . . . Searches Triggered . | . . . . . Construction Impeded . | . . . . . Haulers Reinforced . | . . . . . Active Scanning Responses . | . . . . . Cargo Convoy Interrupts . | . . . . . Stealth | -11 -10 -10 -9 -8 --------- Run | Scr Mat Min Mat Mat Distress Signals 3 | . 1 . 1 1 Communications Jammed . | . . . . . Distress Signals . | . . . . . Times Spotted 94 | . 22 20 33 19 Peak Tracking Total 7 | . 4 4 7 7 Tactical Retreats 10 | . . 2 5 3 Traps | -11 -10 -10 -9 -8 ------- Run | Scr Mat Min Mat Mat Traps Triggered 2 | . 1 . 1 . Indirectly . | . . . . . Trap Hack Attempts . | . . . . . Triggered . | . . . . . Disarmed . | . . . . . Reprogrammed . | . . . . . Reused . | . . . . . Traps Extracted . | . . . . . Installed . | . . . . . Triggered . | . . . . . Machines | -11 -10 -10 -9 -8 ---------- Run | Scr Mat Min Mat Mat Machines Disabled 2 | . 1 . 1 . Max in Single Turn 1 | . 1 . 1 . Machines Sabotaged . | . . . . . Garrisons Compromised . | . . . . . Overloaded Fab Kills . | . . . . . Hacking | -11 -10 -10 -9 -8 --------- Run | Scr Mat Min Mat Mat Machines Accessed 13 | . 6 . 3 4 Terminals 10 | . 4 . 2 4 Fabricators . | . . . . . Repair Stations 2 | . 1 . 1 . Recycling Units 1 | . 1 . . . Scanalyzers . | . . . . . Garrison Access . | . . . . . Total Hacks 41 | . 17 . 6 18 Successful 19 | . 8 . 3 8 Failed 22 | . 9 . 3 10 Catastrophic 1 | . . . 1 . Database Lockouts . | . . . . . Manual 24 | . 11 . 6 7 Terminals 37 | . 15 . 4 18 Fabricators . | . . . . . Repair Stations 3 | . 1 . 2 . Recycling Units 1 | . 1 . . . Scanalyzers . | . . . . . Garrison Access . | . . . . . Terminal Hacks 14 | . 6 . 1 7 Robot Schematic 1 | . 1 . . . Prototype ID Bank 2 | . 1 . . 1 Branch Access Points 1 | . . . . 1 Terminal Index 2 | . . . 1 1 Alert Level 1 | . . . . 1 Locate Traps 2 | . 1 . . 1 Transport Status 1 | . 1 . . . Recall Investigation 1 | . 1 . . . Hauler Manifests 1 | . 1 . . . Registered Components 1 | . . . . 1 Zone Layout 1 | . . . . 1 Fabricator Hacks . | . . . . . Repair Station Hacks 2 | . 1 . 1 . Refit 2 | . 1 . 1 . Recycling Unit Hacks . | . . . . . Scanalyzer . | . . . . . Garrison Access Hacks . | . . . . . Unauthorized Hacks 3 | . 1 . 1 1 Terminals 2 | . . . 1 1 Operators 2 | . . . 1 1 Fabricators . | . . . . . Repair Stations . | . . . . . Recycling Units 1 | . 1 . . . Tunnel 1 | . 1 . . . Scanalyzers . | . . . . . Garrison Access . | . . . . . Data Cores Recovered . | . . . . . Used . | . . . . . Hacking Detections 11 | . 5 . 2 4 Full Trace Events . | . . . . . Feedback Events . | . . . . . Feedback Blocked . | . . . . . Robot Schematics Acquired 1 | . 1 . . . Robots Built . | . . . . . Authchips . | . . . . . Time . | . . . . . Total Robot Build Rating . | . . . . . Part Schematics Acquired . | . . . . . Parts Built . | . . . . . Authchips . | . . . . . Time . | . . . . . Total Part Build Rating . | . . . . . Parts Repaired . | . . . . . Time . | . . . . . Parts Recycled . | . . . . . Recycled Matter . | . . . . . Retrieved Matter . | . . . . . Retrieved Components . | . . . . . Parts Scanalyzed . | . . . . . Part Schematics Acquired . | . . . . . Parts Damaged . | . . . . . Bothacking | -11 -10 -10 -9 -8 ------------ Run | Scr Mat Min Mat Mat Used RIF Installer . | . . . . . Robots Hacked 3 | . 3 . . . Non-combat 3 | . 3 . . . Combat . | . . . . . Robot Hacks Applied 5 | . 5 . . . parse_system 2 | . 2 . . . no_distress 2 | . 2 . . . check_alert 1 | . 1 . . . Relay Couplers Released . | . . . . . Fabnet Peak Effective % . | . . . . . Robots Rewired . | . . . . . Allies Hacked . | . . . . . Hacks Repelled . | . . . . . Allies | -11 -10 -10 -9 -8 -------- Run | Scr Mat Min Mat Mat Total Allies . | . . . . . Largest Group . | . . . . . Highest-Rated Group . | . . . . . Highest-Rated Ally . | . . . . . Total Orders . | . . . . . Ally Attacks . | . . . . . Total Damage . | . . . . . Kills . | . . . . . Allies Corrupted . | . . . . . Allies Melted . | . . . . . Intel | -11 -10 -10 -9 -8 ------- Run | Scr Mat Min Mat Mat Robot Analysis Total . | . . . . . Derelict Logs Recovered 1 | . . 1 . . Drone Launches . | . . . . . Drone Recoveries . | . . . . . Exploration | -11 -10 -10 -9 -8 ------------- Run | Scr Mat Min Mat Mat Turns Passed 2955 | 36 648 1037 860 374 Spaces Moved 2125 | 34 557 751 479 304 Core 23 | 1 . 2 . 20 Treads 181 | . . 181 . . Legs 457 | . . 190 267 . Wheels 1324 | 33 557 377 209 148 Hover 3 | . . . 3 . Flight 137 | . . 1 . 136 Fastest Speed 30 | 50 80 80 105 30 Average Speed 100 | 79 80 110 128 72 Slowest Speed 440 | 80 80 280 320 440 Overloaded Moves . | . . . . . Propulsion Burnouts . | . . . . . Robots Hopped 3 | . . . . 3 Cave-ins Triggered . | . . . . . Exploration Rate (%) 44 | 4 71 90 31 28 Regions Visited 4 Branch Regions 1 Pre-discovered Areas 1 | . 1 . . . Known Exits Taken 2 | . 1 1 . . Unknown Exits Taken 2 | 1 . . 1 . Scrap Searched 2 | . . 2 . . Spaces Dug 1 | . . . . 1 Terrain Destroyed 46 | . 10 . 35 1 Melee 1 | . . . . 1 Projectile . | . . . . . AOE 45 | . 10 . 35 . Terrain Rammed . | . . . . . Walls Destroyed . | . . . . . Machines Disabled . | . . . . . Actions | -11 -10 -10 -9 -8 --------- Run | Scr Mat Min Mat Mat Total 2562 | 39 670 868 587 398 Wait 78 | . 13 11 5 49 Move 2115 | 33 556 750 478 298 Hop 3 | . . . . 3 Pick Up 26 | . 10 6 6 4 Fast Attach 37 | 6 3 12 10 6 Attach 15 | . 3 4 5 3 Detach 5 | . 3 2 . . Swap 11 | . 4 7 . . Drop 36 | . 3 17 10 6 Fire 128 | . 68 59 . 1 Melee 108 | . 7 . 73 28 Ram . | . . . . . Kick . | . . . . . Crush . | . . . . . Escape Stasis . | . . . . . Rewire . | . . . . . Trap . | . . . . . Miscellaneous . | . . . . . Route ------- -11/Scrapyard -10/Materials (discovered 4 exits: *Mat x2 / *Min x2) -10/Mines -9/Materials (discovered 2 exits: *Mat / Sto) -8/Materials History --------- Turn | Location | Event 6 | -11/Scrapyard | Discovered new exit (range 16) 37 | -11/Scrapyard | Entered Materials 69 | -10/Materials | Discovered new exit (range 16) 224 | -10/Materials | Discovered new exit (range 16) 312 | -10/Materials | Build established: Mutant 457 | -10/Materials | Discovered new exit (range 11) 476 | -10/Materials | Identified exit to Materials 639 | -10/Materials | Discovered new exit (range 7) 643 | -10/Materials | Identified exit to Mines 685 | -10/Materials | Entered Mines 1036 | -10/Mines | Joined a pair of Derelicts in attacking an 0b10 outpost 1160 | -10/Mines | Excavation squad dispatched 1160 | -10/Mines | A large section of the Mines collapsed 1372 | -10/Mines | Core integrity fell below 50% 1382 | -10/Mines | Build established: Scavenger-Mutant 1410 | -10/Mines | Excavation squad dispatched 1500 | -10/Mines | Discovered exit to Materials (range 16) 1722 | -10/Mines | Entered Materials 1722 | -9/Materials | Evolved 2 slots: Propulsion x1, Weapon x1 1723 | -9/Materials | Identified exit to Storage 2440 | -9/Materials | Core integrity fell below 50% 2467 | -9/Materials | Lost 3 parts (2n1u) 2493 | -9/Materials | Core integrity fell below 20% 2519 | -9/Materials | Discovered new exit (range 15) 2522 | -9/Materials | First assault squad dispatched 2582 | -9/Materials | Entered another Materials area 2582 | -8/Materials | Evolved 2 slots: Propulsion x1, Weapon x1 2613 | -8/Materials | Build established: Mutant 2956 | -8/Materials | Self-destructed Last Messages --------------- 02930_ U-05 Engineer builds a Wall. 02932_ Rnf. Ion Engine destroyed. 02932_ Knocked back. 02933_ K-01 Serf collects debris. 02934_ R-06 Scavenger collects Imp. Ion Engine. 02934_ R-06 Scavenger collects Beam Rifle. 02934_ H-61 Shepherd calls for reinforcements. 02934_ ALERT: Hostile activity reported, dispatching reinforcements to area. 02934_ Knocked back. 02937_ R-06 Scavenger collects Lgt. Treads. 02937_ K-01 Serf collects debris. 02939_ Hvy. Hammer destroyed. 02940_ C-17 Slicer Surge Thruster blasted off. 02940_ C-17 Slicer destroyed. 02940_ K-01 Serf collects debris. 02942_ R-06 Scavenger collects Corrupted Carbon-fiber Leg. 02942_ Knocked back. 02951_ U-05 Engineer lays Concrete. 02956_ Cesium-ion Thruster severed. Map ----- +----------------------------------------------------+ | ?????????????????????????????????????????????????? | | ?????????????????????????????????????????????????? | | ?????????????????????????????????????????????????? | | ?????????????????????????????????????????????????? | | ?????????????????????????????????????????????????? | | ?????????????????????????????????????????????????? | | ?????????????????????????????????????????????????? | | ?????????????????????????????????????????????????? | | ?????????????????????????????????????????????????? | | ?????????????????????????????????????????????????? | | ?????????????????????????????????????????????????? | | ?????????????????????????????????????????????????? | | ?????????????????????????????????????????????????? | | ?????????????????????????????????????????????????? | | ??????o??????????????????????????????????????????? | | ?????????????????????????????????????????????????? | | ?????????????????????????????????????????????????? | | ?????????????????????????????????????????????????? | | ?"???????######??????????????????????????????????? | | """?#???##!!!!##?????????????????????????????????? | | ? # ??#! !#?????????????????????????????????? | | ??? / ?#! !#?????????????????????????????????? | | ????# ?# ##????????????????????????????????? | | ????# ## #????????????????????????????????? | | ????# #################?????????????????? | | ????# + c@ !#?????????????????? | | ????# ####### #?????????????????? | | ????##### #????# #?????????????????? | | ????????### ##????# #?????????????????? | | ????#?????## ###?????# ! #?????????????????? | | ??###"###### #???????# = #?????????????????? | | ### # #???????# g= #?????????????????? | | # #H###?????# #?????????????????? | | # #%################+##?????????????????? | | #"" ! /#% ?????????????????? | | # % +%% ]= ?????????????????? | | #""" [# %% % ?????????????????? | | #""" ### #####+######????????????????????? | | #""" #?# # #????????????????????????? | | # #?# / #????????????????????????? | | ##########?# ## #????????????????????????? | | +##??????????# ## #????????????????????????? | | #???????????# ## !%#????????????????????????? | | #???????????# ## #????????????????????????? | | ############# ## #????????????????????????? | | ##"T"## ## #????????????????????????? | | ## %! #????????????????????????? | | T ^ ## !! #????????????????????????? | | ^ ## ###########??????????????? | | ]] ## # #??????????????? | +----------------------------------------------------+ Best States ------------- Heat Dissipation 31 Energy Generation 14 Energy Capacity 280 Matter Stores 300 Matter Capacity 300 Sight Range 18 Terrain Scan Density 10 Additional Mass Support 9 Core Shielding 20 Weapon Shielding 33 Evasion (%) 64 Recoil Reduction 2 Authchip Count 3 Item Schematics ----------------- None Robot Schematics ------------------ G-34 Mercenary | -10/Materials | Hacked Fabricated ------------ Nothing Alien Tech Used ----------------- None Achievements -------------- None Challenges ------------ None Game ------ Seed GravityDroneScreen Manual? 0 Play Time 00:42:20 Cumulative 32.6 hours Start 2022.07.06 @ 03:02:23 End 2022.07.06 @ 03:42:19 Sessions 1 Manual Loads 0 Difficulty Rogue Special Mode None Game No. 20 Rogue 20 Adventurer 0 Explorer 0 Win Type - Total 0 Types 0/0/0/0/0/0/0/0/0 Lore% 29 Gallery% 40 Achievement% 32 Wizard Run 0 Options --------- ASCII 0 Keyboard 0 Movement Mouse Keybinds 0 Fullscreen 1 Font 18/SmallcapsGlow Map View 76x50 Tactical HUD 1 Map Filters NONE Filters NONE Steam 1 RUN: 2fd8d8a2-b90a-4038-9563-6b3c45482232